[Event "21st Dubai Open 2019"]
[Site "Dubai"]
[Date "2019.04.06"]
[Round "6.12"]
[White "Shailesh, Dravid"]
[Black "Can, Emre"]
[Result "0-1"]
[ECO "A36"]
[WhiteElo "2316"]
[BlackElo "2599"]
[Annotator "RC"]
[PlyCount "78"]
[EventDate "2019.04.01"]
[EventType "swiss"]
[EventCountry "UAE"]
[SourceTitle "playchess.com"]
[Source "ChessBase"]
[SourceQuality "1"]
[TimeControl "5400+30"]

1. c4 {[%emt 0:00:00]} g6 {[%emt 0:01:06]} 2. Nc3 {[%emt 0:00:00]} Bg7 {[%emt 0:00:22]} 3. g3 {[%emt 0:00:22]} c5 {[%emt 0:01:04]} 4. Bg2 {[%emt 0:00:36]} Nc6 {[%emt 0:00:28]} 5. d3 {[%emt 0:02:01]} d6 {[%emt 0:01:43]} 6. e4 {[%emt 0:01:07]} e6 {[%emt 0:01:58]} 7. Nge2 {[%emt 0:01:49]} Nge7 {[%emt 0:00:19]} 8. Be3 {[%emt 0:01:32]} Nd4 {[%emt 0:03:01]} 9. O-O {[%emt 0:02:04]} O-O {[%emt 0:01:06]} 10. f4 {[%emt 0:03:15]} Rb8 {[%emt 0:02:23]} 11. Qd2 {[%emt 0:03:50]} a6 {[%emt 0:03:43]} 12. Rab1 {[%emt 0:06:58]} b6 {[%emt 0:06:51]} 13. h3 {[%emt 0:06:32]} Bb7 {[%emt 0:01:50]} 14. Kh2 {[%emt 0:00:18]} Qd7 {[%emt 0:06:23]} 15. Bg1 {[%emt 0:05:04]} f5 {[%emt 0:11:37]} 16. b4 {[%emt 0:06:43]} Ba8 {[%emt 0:06:59]} 17. a3 {[%emt 0:13:26]} Kh8 {[%emt 0:04:12]} 18. Bf2 {[%emt 0:05:41]} Ng8 {[%emt 0:06:33]} 19. Bh1 {[%emt 0:04:53]} Qc7 {[%emt 0:03:34]} 20. Rfc1 {[%emt 0:11:17]} Rbd8 {[%emt 0:05:32]} 21. Qe1 {[%emt 0:01:31]} Rf7 {[%emt 0:02:56]} 22. Qg1 {[%emt 0:01:36]} Nxe2 {[%emt 0:01:47]} 23. Nxe2 {[%emt 0:00:02]} Rdf8 {[%emt 0:00:40]} 24. bxc5 {[%emt 0:02:05]} bxc5 {[%emt 0:01:02]} 25. exf5 {[%emt 0:00:17]} gxf5 {[%emt 0:02:16]} 26. Bxa8 {[%emt 0:00:53]} Rxa8 {[%emt 0:00:13]} 27. d4 {[%emt 0:00:54]} Rc8 {[%emt 0:03:55]} 28. dxc5 {[%emt 0:01:47]} dxc5 {[%emt 0:00:07]} 29. Nc3 {[%emt 0:01:40]} Rd7 {[%emt 0:02:45]} 30. Na4 {[%emt 0:02:25]} Rd2 {[%emt 0:00:56]} 31. Qe1 {[%emt 0:00:10]} Ra2 {[%emt 0:04:18]} 32. Kg1 {[%emt 0:00:44]} Rxf2 {[%emt 0:03:06]} 33. Kxf2 {[%emt 0:00:51]} Qc6 {[%emt 0:00:07]} 34. Rd1 {[%emt 0:08:15]} Qxa4 {[%emt 0:00:20]} 35. Qxe6 {[%emt 0:01:18]} Re8 {[%emt 0:01:34]} 36. Qd7 {[%emt 0:00:24]} Qc2+ {[%emt 0:01:29]} 37. Qd2 {[%emt 0:01:36]} Bd4+ {[%emt 0:00:26]} 38. Kf1 {[%emt 0:00:22]} Qxc4+ {[%emt 0:00:15]} 39. Qd3 {[%emt 0:00:04]} Qd5 {[%emt 0:00:07]} 0-1

[Event "21st Dubai Open 2019"]
[Site "Dubai"]
[Date "2019.04.06"]
[Round "6.15"]
[White "Bellahcene, Bilel"]
[Black "Sadhwani, Raunak"]
[Result "1/2-1/2"]
[ECO "E71"]
[WhiteElo "2538"]
[BlackElo "2475"]
[Annotator "RC"]
[PlyCount "175"]
[EventDate "2019.04.01"]
[EventType "swiss"]
[EventCountry "UAE"]
[SourceTitle "playchess.com"]
[Source "ChessBase"]
[SourceQuality "1"]
[TimeControl "5400+30"]

1. d4 {[%emt 0:00:00]} Nf6 {[%emt 0:00:00]} 2. c4 {[%emt 0:00:00]} g6 {[%emt 0:00:00]} 3. Nc3 {[%emt 0:00:00]} Bg7 {[%emt 0:00:00]} 4. e4 {[%emt 0:00:00]} d6 {[%emt 0:00:00]} 5. h3 {[%emt 0:00:00]} O-O {[%emt 0:00:00]} 6. Nf3 {[%emt 0:00:00]} e5 {[%emt 0:00:02]} 7. d5 {[%emt 0:00:00]} Nh5 {[%emt 0:00:06]} 8. g3 {[%emt 0:00:00]} Qe7 {[%emt 0:00:23]} 9. Nh2 {[%emt 0:00:03]} Na6 {[%emt 0:00:07]} 10. Be2 {[%emt 0:01:51]} f5 {[%emt 0:00:17]} 11. exf5 {[%emt 0:00:08]} Rxf5 {[%emt 0:00:04]} 12. O-O {[%emt 0:01:07]} Rf7 {[%emt 0:06:19]} 13. Kg2 {[%emt 0:04:13]} Bd7 {[%emt 0:06:02]} 14. Ng4 {[%emt 0:03:19]} Kh8 {[%emt 0:03:02]} 15. Be3 {[%emt 0:00:36]} Qf8 {[%emt 0:26:47]} 16. Ne4 {[%emt 0:05:00]} Re8 {[%emt 0:02:32]} 17. f3 {[%emt 0:00:51]} Nc5 {[%emt 0:06:22]} 18. Bxc5 {[%emt 0:09:02]} dxc5 {[%emt 0:00:02]} 19. Qd2 {[%emt 0:00:16]} b6 {[%emt 0:05:21]} 20. Rae1 {[%emt 0:02:25]} Nf6 {[%emt 0:02:29]} 21. Ngxf6 {[%emt 0:04:04]} Bxf6 {[%emt 0:00:03]} 22. h4 {[%emt 0:01:57]} Bf5 {[%emt 0:02:59]} 23. Bd3 {[%emt 0:01:11]} Qg7 {[%emt 0:05:22]} 24. Nf2 {[%emt 0:01:58]} Ref8 {[%emt 0:01:05]} 25. Be4 {[%emt 0:02:35]} Be7 {[%emt 0:01:04]} 26. Qd3 {[%emt 0:05:17]} a6 {[%emt 0:03:56]} 27. Re3 {[%emt 0:01:22]} Bd6 {[%emt 0:02:01]} 28. Rh1 {[%emt 0:01:44]} h5 {[%emt 0:00:05]} 29. Qe2 {[%emt 0:01:50]} Kg8 {[%emt 0:02:20]} 30. Ra3 {[%emt 0:06:09]} Bc8 {[%emt 0:00:20]} 31. Qc2 {[%emt 0:02:03]} Rf6 {[%emt 0:00:26]} 32. Qd2 {[%emt 0:00:07]} Be7 {[%emt 0:01:32]} 33. Bc2 {[%emt 0:02:28]} Bg4 {[%emt 0:02:24]} 34. Nxg4 {[%emt 0:07:11]} hxg4 {[%emt 0:00:05]} 35. fxg4 {[%emt 0:00:42]} Rf2+ {[%emt 0:00:27]} 36. Qxf2 {[%emt 0:00:50]} Rxf2+ {[%emt 0:00:02]} 37. Kxf2 {[%emt 0:00:07]} e4 {[%emt 0:00:09]} 38. Re3 {[%emt 0:03:48]} Qxb2 {[%emt 0:00:50]} 39. Re2 {[%emt 0:00:24]} Qd4+ {[%emt 0:03:12]} 40. Kg2 {[%emt 0:02:41]} e3 {[%emt 0:07:49]} 41. Rhe1 {[%emt 0:05:57]} Bxh4 {[%emt 0:00:41]} 42. Rxe3 {[%emt 0:00:45]} Bf6 {[%emt 0:00:13]} 43. Re4 {[%emt 0:03:39]} Qc3 {[%emt 0:00:06]} 44. R1e2 {[%emt 0:00:58]} Kg7 {[%emt 0:00:02]} 45. Kh2 {[%emt 0:05:27]} Qf3 {[%emt 0:01:29]} 46. Rg2 {[%emt 0:01:24]} b5 {[%emt 0:01:17]} 47. Rf4 {[%emt 0:01:29]} Qc3 {[%emt 0:00:18]} 48. cxb5 {[%emt 0:04:06]} axb5 {[%emt 0:00:19]} 49. g5 {[%emt 0:02:35]} Be5 {[%emt 0:01:23]} 50. Rg4 {[%emt 0:01:55]} Qf3 {[%emt 0:00:22]} 51. Kh3 {[%emt 0:01:05]} c4 {[%emt 0:01:39]} 52. Rh4 {[%emt 0:01:45]} b4 {[%emt 0:02:32]} 53. Rxc4 {[%emt 0:04:48]} Bxg3 {[%emt 0:00:22]} 54. Be4 {[%emt 0:01:52]} Qf1 {[%emt 0:00:24]} 55. Kxg3 {[%emt 0:00:26]} Qxc4 {[%emt 0:00:05]} 56. Kf4 {[%emt 0:00:05]} Qc1+ {[%emt 0:01:08]} 57. Kf3 {[%emt 0:00:25]} Qf1+ {[%emt 0:02:10]} 58. Ke3 {[%emt 0:00:19]} Qa1 {[%emt 0:00:39]} 59. Rc2 {[%emt 0:00:29]} Qe5 {[%emt 0:01:23]} 60. Kf3 {[%emt 0:01:41]} Kf8 {[%emt 0:02:04]} 61. Rc6 {[%emt 0:00:19]} Qxg5 {[%emt 0:00:24]} 62. Rxg6 {[%emt 0:00:03]} Qh5+ {[%emt 0:00:48]} 63. Ke3 {[%emt 0:00:29]} Qh3+ {[%emt 0:00:33]} 64. Bf3 {[%emt 0:00:07]} Ke7 {[%emt 0:01:17]} 65. Rg7+ {[%emt 0:01:11]} Kd6 {[%emt 0:01:09]} 66. Rg6+ {[%emt 0:00:01]} Ke5 {[%emt 0:01:28]} 67. Re6+ {[%emt 0:00:23]} Kf5 {[%emt 0:00:07]} 68. Rc6 {[%emt 0:00:10]} Qg3 {[%emt 0:00:17]} 69. Rc4 {[%emt 0:00:58]} Qg1+ {[%emt 0:00:21]} 70. Kd3 {[%emt 0:00:42]} Qb1+ {[%emt 0:00:12]} 71. Rc2 {[%emt 0:00:41]} Kf4 {[%emt 0:01:38]} 72. Be2 {[%emt 0:00:22]} Kg3 {[%emt 0:01:12]} 73. Kd2 {[%emt 0:00:47]} Kf2 {[%emt 0:01:21]} 74. Bd1 {[%emt 0:00:07]} Qa1 {[%emt 0:00:08]} 75. Kd3+ {[%emt 0:00:18]} Kg3 {[%emt 0:00:17]} 76. Be2 {[%emt 0:00:28]} Qe5 {[%emt 0:00:05]} 77. Kc4 {[%emt 0:00:34]} Qe7 {[%emt 0:01:05]} 78. Kb3 {[%emt 0:00:21]} Kf4 {[%emt 0:00:09]} 79. Bc4 {[%emt 0:01:12]} Qe1 {[%emt 0:00:23]} 80. Kb2 {[%emt 0:00:16]} Qe5+ {[%emt 0:00:28]} 81. Kb1 {[%emt 0:00:07]} Qd6 {[%emt 0:00:19]} 82. Bb3 {[%emt 0:01:01]} Ke3 {[%emt 0:00:21]} 83. Kb2 {[%emt 0:00:06]} Qf6+ {[%emt 0:00:39]} 84. Kb1 {[%emt 0:00:03]} Qg6 {[%emt 0:00:23]} 85. Kb2 {[%emt 0:00:14]} Qg7+ {[%emt 0:00:13]} 86. Kb1 {[%emt 0:00:05]} Kd3 {[%emt 0:00:08]} 87. Bc4+ {[%emt 0:00:10]} Kd4 {[%emt 0:00:10]} 88. Bb3 {[%emt 0:00:03]} 1/2-1/2

[Event "21st Dubai Open 2019"]
[Site "Dubai"]
[Date "2019.04.06"]
[Round "6.17"]
[White "Mulenga, Prince Daniel"]
[Black "Kuybokarov, Temur"]
[Result "1-0"]
[ECO "D38"]
[WhiteElo "2252"]
[BlackElo "2519"]
[Annotator "ChessBase"]
[PlyCount "85"]
[EventDate "2019.04.01"]
[EventType "swiss"]
[EventCountry "UAE"]
[SourceTitle "playchess.com"]
[Source "ChessBase"]
[SourceQuality "1"]
[TimeControl "5400+30"]

1. d4 {[%emt 0:00:00]} Nf6 {[%emt 0:00:00]} 2. c4 {[%emt 0:00:00]} e6 {[%emt 0:00:16]} 3. Nf3 {[%emt 0:00:00]} d5 {[%emt 0:00:09]} 4. Nc3 {[%emt 0:00:03]} Bb4 {[%emt 0:00:18]} 5. Qa4+ {[%emt 0:00:03]} Nc6 {[%emt 0:00:06]} 6. e3 {[%emt 0:00:02]} O-O {[%emt 0:00:16]} 7. Be2 {[%emt 0:00:25]} a6 {[%emt 0:03:24]} 8. Qc2 {[%emt 0:00:03]} dxc4 {[%emt 0:02:53]} 9. Bxc4 {[%emt 0:00:03]} Bd6 {[%emt 0:04:12]} 10. O-O {[%emt 0:05:37]} b5 {[%emt 0:04:42]} 11. Be2 {[%emt 0:00:17]} Bb7 {[%emt 0:00:37]} 12. a3 {[%emt 0:00:17]} e5 {[%emt 0:02:34]} 13. d5 {[%emt 0:02:26]} Ne7 {[%emt 0:06:50]} 14. e4 {[%emt 0:01:21]} c6 {[%emt 0:01:48]} 15. dxc6 {[%emt 0:00:21]} Nxc6 {[%emt 0:00:18]} 16. Bg5 {[%emt 0:00:03]} h6 {[%emt 0:01:48]} 17. Bh4 {[%emt 0:01:57]} Nd4 {[%emt 0:05:30]} 18. Qd3 {[%emt 0:03:39]} Nxe2+ {[%emt 0:03:04]} 19. Qxe2 {[%emt 0:00:09]} Qe7 {[%emt 0:04:41]} 20. Rad1 {[%emt 0:06:57]} Qe6 {[%emt 0:02:32]} 21. Bxf6 {[%emt 0:02:14]} Qxf6 {[%emt 0:02:09]} 22. Nd5 {[%emt 0:00:01]} Qe6 {[%emt 0:01:35]} 23. Nh4 {[%emt 0:00:13]} g6 {[%emt 0:04:59]} 24. Qe3 {[%emt 0:00:56]} Kg7 {[%emt 0:02:05]} 25. Rd3 {[%emt 0:05:11]} Rad8 {[%emt 0:05:51]} 26. Rfd1 {[%emt 0:02:38]} Bb8 {[%emt 0:00:50]} 27. Qg3 {[%emt 0:06:26]} Kh7 {[%emt 0:00:28]} 28. Nf3 {[%emt 0:01:53]} Bd6 {[%emt 0:08:59]} 29. Qh4 {[%emt 0:07:58]} Kg7 {[%emt 0:01:37]} 30. h3 {[%emt 0:02:15]} f6 {[%emt 0:04:17]} 31. Nh2 {[%emt 0:04:23]} f5 {[%emt 0:02:15]} 32. exf5 {[%emt 0:00:29]} gxf5 {[%emt 0:00:32]} 33. Rg3+ {[%emt 0:01:32]} Kh8 {[%emt 0:00:50]} 34. Nf3 {[%emt 0:09:13]} Bxd5 {[%emt 0:11:02]} 35. Rxd5 {[%emt 0:03:05]} e4 {[%emt 0:02:17]} 36. Ne5 {[%emt 0:00:59]} Bxe5 {[%emt 0:04:17]} 37. Rxd8 {[%emt 0:00:28]} Bxg3 {[%emt 0:00:06]} 38. Rxf8+ {[%emt 0:00:52]} Kg7 {[%emt 0:00:08]} 39. Qd8 {[%emt 0:00:30]} e3 {[%emt 0:00:32]} 40. fxg3 {[%emt 0:01:04]} e2 {[%emt 0:00:05]} 41. Rg8+ {[%emt 0:00:02]} Qxg8 42. Qxg8+ Kxg8 43. Kf2 1-0

[Event "21st Dubai Open 2019"]
[Site "Dubai"]
[Date "2019.04.06"]
[Round "6.18"]
[White "Venkatesh, M.R."]
[Black "Dimakiling, Oliver"]
[Result "0-1"]
[ECO "B20"]
[WhiteElo "2517"]
[BlackElo "2404"]
[Annotator "ChessBase"]
[PlyCount "84"]
[EventDate "2019.04.01"]
[EventType "swiss"]
[EventCountry "UAE"]
[SourceTitle "playchess.com"]
[Source "ChessBase"]
[SourceQuality "1"]
[TimeControl "5400+30"]

1. e4 {[%emt 0:04:14]} c5 {[%emt 0:00:00]} 2. Be2 {[%emt 0:00:50]} Nc6 {[%emt 0:00:00]} 3. f4 {[%emt 0:00:05]} Nf6 {[%emt 0:01:13]} 4. d3 {[%emt 0:00:26]} d6 {[%emt 0:01:56]} 5. Nf3 {[%emt 0:00:18]} e5 {[%emt 0:03:07]} 6. O-O {[%emt 0:08:35]} c4 {[%emt 0:02:51]} 7. Nc3 {[%emt 0:09:27]} cxd3 {[%emt 0:00:27]} 8. Qxd3 {[%emt 0:00:39]} Be7 {[%emt 0:02:03]} 9. a3 {[%emt 0:00:43]} O-O {[%emt 0:00:38]} 10. f5 {[%emt 0:02:50]} h6 {[%emt 0:02:21]} 11. Kh1 {[%emt 0:00:25]} a6 {[%emt 0:00:33]} 12. Be3 {[%emt 0:19:14]} b5 {[%emt 0:01:12]} 13. Nd5 {[%emt 0:20:41]} Nxd5 {[%emt 0:00:46]} 14. exd5 {[%emt 0:00:05]} Nb8 {[%emt 0:00:33]} 15. a4 {[%emt 0:00:08]} b4 {[%emt 0:03:30]} 16. g4 {[%emt 0:01:52]} Nd7 {[%emt 0:01:05]} 17. g5 {[%emt 0:05:16]} hxg5 {[%emt 0:00:33]} 18. Rg1 {[%emt 0:00:20]} e4 {[%emt 0:10:54]} 19. Qxe4 {[%emt 0:00:18]} Bf6 {[%emt 0:00:06]} 20. Nxg5 {[%emt 0:11:15]} Re8 {[%emt 0:01:04]} 21. Qh4 {[%emt 0:03:41]} Rxe3 {[%emt 0:03:37]} 22. Qh7+ {[%emt 0:00:06]} Kf8 {[%emt 0:00:05]} 23. Ne6+ {[%emt 0:02:28]} Rxe6 {[%emt 0:00:07]} 24. fxe6 {[%emt 0:00:05]} Ne5 {[%emt 0:01:47]} 25. exf7 {[%emt 0:00:58]} Bb7 {[%emt 0:01:48]} 26. Rad1 {[%emt 0:00:46]} Nxf7 {[%emt 0:02:47]} 27. Bh5 {[%emt 0:00:17]} Qe7 {[%emt 0:02:14]} 28. Rd3 {[%emt 0:02:02]} Re8 {[%emt 0:05:32]} 29. Bg6 {[%emt 0:00:07]} Qe2 {[%emt 0:02:47]} 30. Qh3 {[%emt 0:03:25]} Re3 {[%emt 0:06:15]} 31. Qf5 {[%emt 0:02:53]} Rxd3 {[%emt 0:02:59]} 32. cxd3 {[%emt 0:00:16]} Ne5 {[%emt 0:02:54]} 33. Qe4 {[%emt 0:00:29]} Nxg6 {[%emt 0:01:10]} 34. Qxe2 {[%emt 0:00:47]} Bxd5+ {[%emt 0:00:03]} 35. Qe4 {[%emt 0:00:42]} Bxe4+ {[%emt 0:00:14]} 36. dxe4 {[%emt 0:00:01]} Nf4 {[%emt 0:00:14]} 37. b3 {[%emt 0:00:19]} Ke7 {[%emt 0:00:31]} 38. h4 {[%emt 0:01:20]} Nd3 {[%emt 0:00:20]} 39. Kg2 {[%emt 0:00:34]} Bxh4 {[%emt 0:00:19]} 40. Kf3 {[%emt 0:00:04]} Bf6 {[%emt 0:00:10]} 41. a5 {[%emt 0:00:56]} Nc5 {[%emt 0:00:16]} 42. Rb1 {[%emt 0:00:26]} Ke6 {[%emt 0:00:05]} 0-1

[Event "21st Dubai Open 2019"]
[Site "Dubai"]
[Date "2019.04.06"]
[Round "6.19"]
[White "Aravindh, Chithambaram VR."]
[Black "Tissir, Mohamed"]
[Result "1-0"]
[ECO "E69"]
[WhiteElo "2602"]
[BlackElo "2386"]
[Annotator "ChessBase"]
[PlyCount "75"]
[EventDate "2019.04.01"]
[EventType "swiss"]
[EventCountry "UAE"]
[SourceTitle "playchess.com"]
[Source "ChessBase"]
[SourceQuality "1"]
[TimeControl "5400+30"]

1. d4 {[%emt 0:02:50]} Nf6 {[%emt 0:01:34]} 2. c4 {[%emt 0:00:09]} g6 {[%emt 0:00:31]} 3. Nc3 {[%emt 0:00:13]} Bg7 {[%emt 0:00:25]} 4. g3 {[%emt 0:00:52]} O-O {[%emt 0:00:08]} 5. Bg2 {[%emt 0:00:04]} d6 {[%emt 0:00:14]} 6. Nf3 {[%emt 0:00:08]} Nbd7 {[%emt 0:00:36]} 7. O-O {[%emt 0:00:09]} e5 {[%emt 0:00:08]} 8. e4 {[%emt 0:00:07]} c6 {[%emt 0:00:07]} 9. h3 {[%emt 0:00:26]} Re8 {[%emt 0:00:49]} 10. Re1 {[%emt 0:00:10]} exd4 {[%emt 0:07:38]} 11. Nxd4 {[%emt 0:00:06]} Qc7 {[%emt 0:00:03]} 12. Be3 {[%emt 0:02:47]} a6 {[%emt 0:05:20]} 13. Qc2 {[%emt 0:00:50]} Rb8 {[%emt 0:09:32]} 14. a4 {[%emt 0:03:00]} Ne5 {[%emt 0:17:47]} 15. b3 {[%emt 0:00:18]} c5 {[%emt 0:00:07]} 16. Nde2 {[%emt 0:00:10]} b6 {[%emt 0:00:01]} 17. Rad1 {[%emt 0:01:40]} Bb7 {[%emt 0:03:11]} 18. Qd2 {[%emt 0:00:39]} Bf8 {[%emt 0:04:21]} 19. g4 {[%emt 0:06:45]} h5 {[%emt 0:06:49]} 20. g5 {[%emt 0:01:20]} Nh7 {[%emt 0:01:53]} 21. f4 {[%emt 0:00:21]} Nd7 {[%emt 0:08:18]} 22. Ng3 {[%emt 0:00:21]} Rbd8 {[%emt 0:01:58]} 23. Qf2 {[%emt 0:00:57]} Bg7 {[%emt 0:02:06]} 24. e5 {[%emt 0:01:04]} Bxg2 {[%emt 0:11:13]} 25. Qxg2 {[%emt 0:00:32]} dxe5 {[%emt 0:00:05]} 26. Nd5 {[%emt 0:00:24]} Qb8 {[%emt 0:01:48]} 27. f5 {[%emt 0:00:46]} e4 {[%emt 0:12:28]} 28. Nxe4 {[%emt 0:00:25]} Qe5 {[%emt 0:04:16]} 29. fxg6 {[%emt 0:07:10]} Qxe4 {[%emt 0:00:29]} 30. gxh7+ {[%emt 0:00:06]} Qxh7 {[%emt 0:00:27]} 31. Bf4 {[%emt 0:00:48]} Bd4+ {[%emt 0:00:36]} 32. Kh2 {[%emt 0:00:40]} Kh8 {[%emt 0:00:15]} 33. Ne7 {[%emt 0:01:09]} Rxe7 {[%emt 0:00:44]} 34. Rxe7 {[%emt 0:00:07]} Qf5 {[%emt 0:00:03]} 35. Qe4 {[%emt 0:00:34]} Qxe4 {[%emt 0:00:55]} 36. Rxe4 {[%emt 0:00:04]} Kg8 {[%emt 0:00:04]} 37. Rexd4 {[%emt 0:00:14]} cxd4 {[%emt 0:00:14]} 38. Rxd4 {[%emt 0:00:06]} 1-0

[Event "21st Dubai Open 2019"]
[Site "Dubai"]
[Date "2019.04.06"]
[Round "6.21"]
[White "Koniahli, Malek."]
[Black "Visakh N R"]
[Result "0-1"]
[ECO "A46"]
[WhiteElo "2299"]
[BlackElo "2509"]
[Annotator "ChessBase"]
[PlyCount "70"]
[EventDate "2019.04.01"]
[EventType "swiss"]
[EventCountry "UAE"]
[SourceTitle "playchess.com"]
[Source "ChessBase"]
[SourceQuality "1"]
[TimeControl "5400+30"]

1. d4 {[%emt 0:00:00]} Nf6 {[%emt 0:00:00]} 2. Nf3 {[%emt 0:00:00]} e6 {[%emt 0:00:00]} 3. Bf4 {[%emt 0:00:00]} c5 {[%emt 0:06:59]} 4. e3 {[%emt 0:00:15]} b6 {[%emt 0:00:44]} 5. Nbd2 {[%emt 0:02:28]} cxd4 {[%emt 0:04:15]} 6. exd4 {[%emt 0:00:08]} Bb7 {[%emt 0:00:05]} 7. Bd3 {[%emt 0:00:26]} Be7 {[%emt 0:00:09]} 8. h3 {[%emt 0:00:18]} O-O {[%emt 0:00:07]} 9. O-O {[%emt 0:00:16]} d6 {[%emt 0:00:08]} 10. c3 {[%emt 0:01:28]} Nbd7 {[%emt 0:01:55]} 11. Qe2 {[%emt 0:00:51]} Re8 {[%emt 0:05:44]} 12. Bh2 {[%emt 0:06:14]} a6 {[%emt 0:03:10]} 13. Rfe1 {[%emt 0:15:52]} Nf8 {[%emt 0:01:22]} 14. a4 {[%emt 0:13:59]} Ng6 {[%emt 0:04:23]} 15. Ne4 {[%emt 0:09:54]} Bxe4 {[%emt 0:08:36]} 16. Bxe4 {[%emt 0:00:06]} Nxe4 {[%emt 0:00:02]} 17. Qxe4 {[%emt 0:00:08]} Qc8 {[%emt 0:00:01]} 18. d5 {[%emt 0:10:28]} e5 {[%emt 0:00:36]} 19. Nd2 {[%emt 0:00:23]} f5 {[%emt 0:03:18]} 20. Qe2 {[%emt 0:01:02]} Qc5 {[%emt 0:01:12]} 21. Qc4 {[%emt 0:05:29]} Rec8 {[%emt 0:01:20]} 22. Qb3 {[%emt 0:03:47]} Bg5 {[%emt 0:03:47]} 23. Rad1 {[%emt 0:01:55]} b5 {[%emt 0:06:35]} 24. Qc2 {[%emt 0:02:36]} Bxd2 {[%emt 0:00:56]} 25. Rxd2 {[%emt 0:00:09]} f4 {[%emt 0:00:02]} 26. Re4 {[%emt 0:07:25]} Rab8 {[%emt 0:00:51]} 27. Qd3 {[%emt 0:01:11]} b4 {[%emt 0:05:26]} 28. cxb4 {[%emt 0:04:52]} Rxb4 {[%emt 0:00:33]} 29. Rxb4 {[%emt 0:00:26]} Qxb4 {[%emt 0:00:02]} 30. Rd1 {[%emt 0:00:18]} Qxa4 {[%emt 0:00:09]} 31. b3 {[%emt 0:00:16]} Qb5 {[%emt 0:04:14]} 32. Qf5 {[%emt 0:05:17]} Re8 {[%emt 0:02:55]} 33. Qc2 {[%emt 0:00:06]} Ne7 {[%emt 0:00:16]} 34. Kh1 {[%emt 0:01:19]} Rc8 {[%emt 0:00:37]} 35. Qb2 {[%emt 0:01:39]} Rc5 {[%emt 0:00:38]} 0-1

[Event "21st Dubai Open 2019"]
[Site "Dubai"]
[Date "2019.04.06"]
[Round "6.24"]
[White "Divya Deshmukh"]
[Black "Kunal, M.."]
[Result "1-0"]
[ECO "A45"]
[WhiteElo "2432"]
[BlackElo "2273"]
[Annotator "NA"]
[PlyCount "59"]
[EventDate "2019.04.01"]
[EventType "swiss"]
[EventCountry "UAE"]
[SourceTitle "playchess.com"]
[Source "ChessBase"]
[SourceQuality "1"]
[TimeControl "5400+30"]

1. d4 {[%emt 0:00:00]} Nf6 {[%emt 0:02:01]} 2. Bg5 {[%emt 0:00:00]} e6 {[%emt 0:01:06]} 3. e4 {[%emt 0:00:00]} h6 {[%emt 0:00:06]} 4. Bxf6 {[%emt 0:00:00]} Qxf6 {[%emt 0:00:08]} 5. Nf3 {[%emt 0:00:00]} d5 {[%emt 0:00:07]} 6. Nbd2 {[%emt 0:01:50]} c5 {[%emt 0:04:39]} 7. c3 {[%emt 0:08:28]} Nc6 {[%emt 0:08:17]} 8. Bb5 {[%emt 0:00:29]} Bd7 {[%emt 0:02:54]} 9. O-O {[%emt 0:02:16]} cxd4 {[%emt 0:10:35]} 10. cxd4 {[%emt 0:02:43]} Be7 {[%emt 0:00:10]} 11. Qb3 {[%emt 0:06:37]} a6 {[%emt 0:10:44]} 12. Bd3 {[%emt 0:03:15]} b5 {[%emt 0:11:29]} 13. a4 {[%emt 0:06:36]} b4 {[%emt 0:10:07]} 14. Rac1 {[%emt 0:04:57]} O-O {[%emt 0:03:03]} 15. Rfe1 {[%emt 0:23:03]} Rfc8 {[%emt 0:09:33]} 16. exd5 {[%emt 0:04:23]} Nxd4 {[%emt 0:02:04]} 17. Nxd4 {[%emt 0:01:12]} Rxc1 {[%emt 0:01:34]} 18. Rxc1 {[%emt 0:00:04]} Qxd4 {[%emt 0:00:04]} 19. Nf3 {[%emt 0:01:10]} Qf4 {[%emt 0:00:40]} 20. Re1 {[%emt 0:00:31]} Bf6 {[%emt 0:03:07]} 21. a5 {[%emt 0:04:42]} exd5 {[%emt 0:07:43]} 22. Qxd5 {[%emt 0:00:21]} Rd8 {[%emt 0:09:15]} 23. Qxd7 {[%emt 0:00:10]} g6 {[%emt 0:00:04]} 24. Re8+ {[%emt 0:00:22]} Rxe8 {[%emt 0:00:05]} 25. Qxe8+ {[%emt 0:00:03]} Kg7 {[%emt 0:00:05]} 26. b3 {[%emt 0:00:12]} Qc1+ {[%emt 0:01:03]} 27. Qe1 {[%emt 0:01:07]} Qa3 {[%emt 0:00:23]} 28. Bc4 {[%emt 0:00:18]} Qxa5 {[%emt 0:00:08]} 29. h3 {[%emt 0:00:03]} Qa3 {[%emt 0:00:29]} 30. Qe8 {[%emt 0:00:25]} 1-0

[Event "21st Dubai Open 2019"]
[Site "Dubai"]
[Date "2019.04.06"]
[Round "6.25"]
[White "Mullick, Raahil"]
[Black "Shyaamnikhil P"]
[Result "0-1"]
[ECO "B90"]
[WhiteElo "2275"]
[BlackElo "2429"]
[Annotator "NA"]
[PlyCount "88"]
[EventDate "2019.04.01"]
[EventType "swiss"]
[EventCountry "UAE"]
[SourceTitle "playchess.com"]
[Source "ChessBase"]
[SourceQuality "1"]
[TimeControl "5400+30"]

1. e4 {[%emt 0:00:00]} c5 {[%emt 0:01:44]} 2. Nf3 {[%emt 0:00:09]} d6 {[%emt 0:00:10]} 3. d4 {[%emt 0:00:21]} cxd4 {[%emt 0:00:13]} 4. Nxd4 {[%emt 0:00:02]} Nf6 {[%emt 0:00:46]} 5. Nc3 {[%emt 0:00:07]} a6 {[%emt 0:00:32]} 6. Be3 {[%emt 0:00:10]} e5 {[%emt 0:00:29]} 7. Nb3 {[%emt 0:00:06]} Be6 {[%emt 0:00:34]} 8. f3 {[%emt 0:00:04]} Nbd7 {[%emt 0:00:13]} 9. Qd2 {[%emt 0:00:15]} Be7 {[%emt 0:03:41]} 10. O-O-O {[%emt 0:00:51]} b5 {[%emt 0:00:35]} 11. g4 {[%emt 0:00:29]} Nb6 {[%emt 0:03:24]} 12. g5 {[%emt 0:08:43]} Nfd7 {[%emt 0:05:09]} 13. Nd5 {[%emt 0:03:53]} Bxd5 {[%emt 0:00:41]} 14. exd5 {[%emt 0:00:08]} Rc8 {[%emt 0:00:10]} 15. Kb1 {[%emt 0:03:46]} Nc4 {[%emt 0:01:20]} 16. Bxc4 {[%emt 0:00:14]} bxc4 {[%emt 0:00:05]} 17. Nc1 {[%emt 0:01:02]} c3 {[%emt 0:04:50]} 18. bxc3 {[%emt 0:08:51]} Rc4 {[%emt 0:05:56]} 19. Nb3 {[%emt 0:07:59]} Qc7 {[%emt 0:02:14]} 20. Qe2 {[%emt 0:03:35]} Ra4 {[%emt 0:07:10]} 21. h4 {[%emt 0:12:46]} O-O {[%emt 0:10:43]} 22. h5 {[%emt 0:02:27]} f5 {[%emt 0:02:58]} 23. gxf6 {[%emt 0:02:10]} Bxf6 {[%emt 0:01:10]} 24. Rhg1 {[%emt 0:04:15]} Qxc3 {[%emt 0:04:43]} 25. Rd3 {[%emt 0:02:53]} Qc8 {[%emt 0:03:41]} 26. Bg5 {[%emt 0:02:10]} Rf7 {[%emt 0:03:34]} 27. Bxf6 {[%emt 0:03:49]} Nxf6 {[%emt 0:00:08]} 28. h6 {[%emt 0:00:10]} g6 {[%emt 0:05:59]} 29. Qd2 {[%emt 0:00:57]} Rc7 {[%emt 0:08:42]} 30. Rc1 {[%emt 0:03:13]} Qb7 {[%emt 0:06:30]} 31. Ka1 {[%emt 0:01:57]} Qb4 {[%emt 0:06:21]} 32. Qxb4 {[%emt 0:02:12]} Rxb4 {[%emt 0:00:07]} 33. a3 {[%emt 0:07:16]} Rbc4 {[%emt 0:00:43]} 34. Kb2 {[%emt 0:00:30]} Rh4 {[%emt 0:00:26]} 35. Na5 {[%emt 0:02:16]} Rxh6 {[%emt 0:01:30]} 36. c4 {[%emt 0:00:48]} Rh2+ {[%emt 0:01:08]} 37. Kb3 {[%emt 0:01:48]} Nd7 {[%emt 0:00:11]} 38. Re3 {[%emt 0:00:58]} Nc5+ {[%emt 0:00:46]} 39. Kc3 {[%emt 0:00:29]} Ra2 {[%emt 0:00:21]} 40. Kb4 {[%emt 0:00:14]} Rb2+ {[%emt 0:03:15]} 41. Kc3 {[%emt 0:00:02]} Na4+ {[%emt 0:00:14]} 42. Kd3 {[%emt 0:00:04]} Nc5+ {[%emt 0:00:42]} 43. Kc3 {[%emt 0:00:01]} Na4+ {[%emt 0:00:05]} 44. Kd3 {[%emt 0:00:11]} Ra2 {[%emt 0:00:04] Kd4} 0-1